[Event "FAI-ch Main 2020"]
[Site "Runavik"]
[Date "2020.10.24"]
[Round "2.5"]
[White "Bjarnasson, Bessi"]
[Black "Joensen, Jon Magnus"]
[Result "1-0"]
[ECO "C44"]
[WhiteElo "1494"]
[BlackElo "1461"]
[Annotator "NA RC"]
[PlyCount "119"]
[EventDate "2020.10.23"]
[EventType "swiss"]
[EventCountry "FAI"]
[SourceTitle "playchess.com"]
[Source "ChessBase"]
[SourceQuality "1"]
[TimeControl "40/5400+30:900+30"]

1. e4 e5 {[%emt 0:00:00]} 2. Nf3 {[%emt 0:04:08]} Nc6 {[%emt 0:00:06]} 3. d4 {[%emt 0:00:30]} exd4 {[%emt 0:00:30]} 4. Bc4 {[%emt 0:00:30]} d6 {[%emt 0:00:30]} 5. O-O {[%emt 0:00:30]} Ne5 {[%emt 0:00:30]} 6. Nxe5 {[%emt 0:00:30]} dxe5 {[%emt 0:00:30]} 7. c3 {[%emt 0:00:30]} c5 {[%emt 0:00:30]} 8. Qh5 {[%emt 0:00:30]} Qc7 {[%emt 0:00:30]} 9. f4 {[%emt 0:00:30]} Nf6 {[%emt 0:01:22]} 10. Qd1 {[%emt 0:07:20]} Ng8 {[%emt 0:11:09]} 11. Qh5 {[%emt 0:12:59]} g6 {[%emt 0:04:51]} 12. Qf3 {[%emt 0:03:44]} Be6 {[%emt 0:02:26]} 13. Bxe6 {[%emt 0:02:09]} fxe6 {[%emt 0:01:10]} 14. fxe5 {[%emt 0:00:31]} O-O-O {[%emt 0:00:48]} 15. cxd4 {[%emt 0:03:35]} cxd4 {[%emt 0:02:39]} 16. Bg5 {[%emt 0:02:56]} Be7 {[%emt 0:05:03]} 17. Rc1 {[%emt 0:01:45]} Bxg5 {[%emt 0:01:12]} 18. Rxc7+ {[%emt 0:00:18]} Kxc7 {[%emt 0:01:59]} 19. Qf7+ {[%emt 0:00:43]} Ne7 {[%emt 0:06:49]} 20. Qxe6 {[%emt 0:06:29]} Rhf8 {[%emt 0:01:01]} 21. Qc4+ {[%emt 0:01:39]} Nc6 {[%emt 0:01:21]} 22. Na3 {[%emt 0:00:16]} Kb8 {[%emt 0:00:41]} 23. Nb5 {[%emt 0:01:41]} a6 {[%emt 0:00:56]} 24. Nd6 {[%emt 0:00:47]} Be3+ {[%emt 0:02:11]} 25. Kh1 {[%emt 0:00:19]} Nxe5 {[%emt 0:00:26]} 26. Qd5 {[%emt 0:04:22]} Nc6 {[%emt 0:00:45]} 27. g3 {[%emt 0:04:21]} Kc7 {[%emt 0:05:29]} 28. e5 {[%emt 0:02:30]} Rf5 {[%emt 0:04:28]} 29. Qb3 {[%emt 0:06:01]} Rxe5 {[%emt 0:07:57]} 30. Nf7 {[%emt 0:01:10]} Rb5 {[%emt 0:00:52]} 31. Qe6 {[%emt 0:01:34]} Rd7 {[%emt 0:01:44]} 32. Rf1 {[%emt 0:02:28]} Rxb2 {[%emt 0:02:46]} 33. Nd6 {[%emt 0:03:02]} Rf2 {[%emt 0:12:19]} 34. Ne8+ {[%emt 0:05:30]} Kd8 {[%emt 0:01:02]} 35. Rxf2 {[%emt 0:02:08]} Bxf2 {[%emt 0:00:37]} 36. Nf6 {[%emt 0:03:55]} Re7 {[%emt 0:02:47]} 37. Qg8+ {[%emt 0:02:20]} Kc7 {[%emt 0:01:19]} 38. Nd5+ {[%emt 0:00:06]} Kd6 {[%emt 0:01:37]} 39. Nxe7 {[%emt 0:00:32]} Nxe7 {[%emt 0:03:11]} 40. Qd8+ {[%emt 0:01:22]} Ke6 {[%emt 0:00:41]} 41. Qb6+ {[%emt 0:15:57]} Ke5 {[%emt 0:15:29]} 42. Qxb7 {[%emt 0:00:00]} Nd5 {[%emt 0:00:00]} 43. Qxa6 {[%emt 0:00:00]} Nc3 {[%emt 0:00:00]} 44. a4 {[%emt 0:00:00]} Ke4 {[%emt 0:00:00]} 45. Qe6+ {[%emt 0:00:00]} Kf3 {[%emt 0:00:00]} 46. Qf6+ {[%emt 0:00:00]} Ke2 {[%emt 0:00:00]} 47. Kg2 {[%emt 0:00:00]} Be3 {[%emt 0:00:00]} 48. Qa6+ {[%emt 0:00:00]} d3 {[%emt 0:00:00]} 49. Qc4 {[%emt 0:00:00]} Nxa4 {[%emt 0:00:00]} 50. Qxa4 {[%emt 0:00:28]} d2 {[%emt 0:00:00]} 51. Qc2 {[%emt 0:01:13]} Ke1 {[%emt 0:00:00]} 52. Qc3 {[%emt 0:01:26]} Ke2 {[%emt 0:00:00]} 53. Qc4+ {[%emt 0:01:18]} Kd1 {[%emt 0:00:00]} 54. Kf3 {[%emt 0:00:21]} Bh6 {[%emt 0:00:00]} 55. Qa4+ {[%emt 0:00:42]} Ke1 {[%emt 0:00:00]} 56. Qb4 {[%emt 0:00:33]} Kd1 {[%emt 0:00:00]} 57. Kf2 {[%emt 0:00:15]} Kc2 {[%emt 0:01:04]} 58. Qa4+ {[%emt 0:00:13]} Kd3 {[%emt 0:02:02]} 59. Qb3+ {[%emt 0:00:29]} Kd4 {[%emt 0:00:21]} 60. Ke2 {[%emt 0:00:09]} 1-0

[Event "FAI-ch Main 2020"]
[Site "Runavik"]
[Date "2020.10.24"]
[Round "3.2"]
[White "Joensen, Henrik W."]
[Black "Tummasarson, Flovin M."]
[Result "0-1"]
[ECO "C55"]
[WhiteElo "1650"]
[BlackElo "1625"]
[Annotator "NA RC"]
[PlyCount "84"]
[EventDate "2020.10.23"]
[EventType "swiss"]
[EventCountry "FAI"]
[SourceTitle "playchess.com"]
[Source "ChessBase"]
[SourceQuality "1"]
[TimeControl "40/5400+30:900+30"]

1. e4 {[%emt 0:00:00]} e5 {[%emt 0:00:00]} 2. Nf3 {[%emt 0:00:00]} Nc6 {[%emt 0:00:09]} 3. d4 {[%emt 0:00:01]} exd4 {[%emt 0:00:42]} 4. Bc4 {[%emt 0:00:31]} Nf6 {[%emt 0:00:25]} 5. e5 {[%emt 0:01:18]} d5 {[%emt 0:03:45]} 6. Bb5 {[%emt 0:07:59]} Nd7 {[%emt 0:04:20]} 7. O-O {[%emt 0:02:17]} Be7 {[%emt 0:01:50]} 8. c3 {[%emt 0:06:34]} dxc3 {[%emt 0:04:19]} 9. Nxc3 {[%emt 0:01:26]} O-O {[%emt 0:04:22]} 10. Bf4 {[%emt 0:06:22]} Nb6 {[%emt 0:06:08]} 11. h3 {[%emt 0:06:58]} Bf5 {[%emt 0:07:33]} 12. Bd3 {[%emt 0:04:29]} Qd7 {[%emt 0:02:30]} 13. a3 {[%emt 0:02:58]} Rad8 {[%emt 0:09:52]} 14. Qc2 {[%emt 0:06:18]} Bxd3 {[%emt 0:04:51]} 15. Qxd3 {[%emt 0:01:57]} Rfe8 {[%emt 0:05:43]} 16. Rfe1 {[%emt 0:04:11]} Nb8 {[%emt 0:05:37]} 17. Nd4 {[%emt 0:10:55]} Na6 {[%emt 0:02:34]} 18. e6 {[%emt 0:02:49]} fxe6 {[%emt 0:01:20]} 19. Nxe6 {[%emt 0:00:55]} Nc5 {[%emt 0:00:38]} 20. Nxc5 {[%emt 0:07:02]} Bxc5 {[%emt 0:00:15]} 21. b4 {[%emt 0:01:52]} Rxe1+ {[%emt 0:02:35]} 22. Rxe1 {[%emt 0:00:18]} Be7 {[%emt 0:02:27]} 23. Nb5 {[%emt 0:05:09]} c6 {[%emt 0:03:57]} 24. Nd4 {[%emt 0:01:26]} Bf6 {[%emt 0:05:00]} 25. Nf5 {[%emt 0:02:13]} Nc4 {[%emt 0:02:07]} 26. g4 {[%emt 0:02:31]} Re8 {[%emt 0:02:24]} 27. Rxe8+ {[%emt 0:04:12]} Qxe8 {[%emt 0:00:22]} 28. Nd6 {[%emt 0:03:05]} Qe1+ {[%emt 0:01:22]} 29. Kg2 {[%emt 0:00:19]} Nxd6 {[%emt 0:00:29]} 30. Bxd6 {[%emt 0:00:27]} Qe6 {[%emt 0:03:46]} 31. Bg3 {[%emt 0:02:51]} Qe4+ {[%emt 0:03:20]} 32. Qxe4 {[%emt 0:00:14]} dxe4 {[%emt 0:00:08]} 33. f4 {[%emt 0:02:03]} b5 {[%emt 0:00:32]} 34. Be1 {[%emt 0:03:12]} Bb2 {[%emt 0:00:23]} 35. Kf2 {[%emt 0:00:20]} Bd4+ {[%emt 0:02:52]} 36. Ke2 {[%emt 0:00:19]} Kf7 {[%emt 0:00:18]} 37. Bd2 {[%emt 0:01:14]} a6 {[%emt 0:00:16]} 38. Be3 {[%emt 0:00:36]} Bb2 {[%emt 0:00:42]} 39. Bc5 {[%emt 0:00:18]} Ke6 {[%emt 0:00:34]} 40. Ke3 {[%emt 0:00:00]} Kd5 {[%emt 0:00:00]} 41. f5 {[%emt 0:02:10]} Bxa3 {[%emt 0:00:28]} 42. Bd4 {[%emt 0:00:53]} Bc1+ {[%emt 0:00:09]} 0-1

[Event "FAI-ch Main 2020"]
[Site "Runavik"]
[Date "2020.10.24"]
[Round "3.3"]
[White "Gregersen, Einar"]
[Black "Bjarnasson, Bessi"]
[Result "1-0"]
[ECO "C78"]
[WhiteElo "1758"]
[BlackElo "1494"]
[Annotator "NA RC"]
[PlyCount "67"]
[EventDate "2020.10.23"]
[EventType "swiss"]
[EventCountry "FAI"]
[SourceTitle "playchess.com"]
[Source "ChessBase"]
[SourceQuality "1"]
[TimeControl "40/5400+30:900+30"]

1. e4 {[%emt 0:00:00]} e5 {[%emt 0:08:13]} 2. Nf3 {[%emt 0:00:13]} Nc6 {[%emt 0:00:03]} 3. Bb5 {[%emt 0:00:18]} a6 {[%emt 0:00:02]} 4. Ba4 {[%emt 0:00:12]} Bc5 {[%emt 0:00:47]} 5. O-O {[%emt 0:00:46]} Nf6 {[%emt 0:00:03]} 6. c3 {[%emt 0:02:55]} O-O {[%emt 0:00:31]} 7. d4 {[%emt 0:01:25]} exd4 {[%emt 0:00:14]} 8. cxd4 {[%emt 0:00:52]} Ba7 {[%emt 0:01:45]} 9. Re1 {[%emt 0:03:25]} d6 {[%emt 0:00:16]} 10. h3 {[%emt 0:00:39]} h6 {[%emt 0:00:31]} 11. Nc3 {[%emt 0:01:15]} b5 {[%emt 0:03:43]} 12. Bc2 {[%emt 0:00:37]} Bb7 {[%emt 0:00:33]} 13. a3 {[%emt 0:03:20]} b4 {[%emt 0:03:54]} 14. axb4 {[%emt 0:02:51]} Nxb4 {[%emt 0:00:27]} 15. Bb3 {[%emt 0:02:30]} Re8 {[%emt 0:02:45]} 16. e5 {[%emt 0:12:24]} dxe5 {[%emt 0:00:06]} 17. Nxe5 {[%emt 0:02:20]} Nbd5 {[%emt 0:04:02]} 18. Bc4 {[%emt 0:04:48]} Re7 {[%emt 0:04:41]} 19. Be3 {[%emt 0:09:37]} Qd6 {[%emt 0:02:43]} 20. Ne2 {[%emt 0:10:33]} Rae8 {[%emt 0:04:48]} 21. Ng3 {[%emt 0:02:00]} Nxe3 {[%emt 0:08:47]} 22. fxe3 {[%emt 0:00:44]} g6 {[%emt 0:02:11]} 23. Qd3 {[%emt 0:06:39]} Rxe5 {[%emt 0:09:12]} 24. Qxg6+ {[%emt 0:03:17]} Kh8 {[%emt 0:01:09]} 25. Qxh6+ {[%emt 0:00:15]} Kg8 {[%emt 0:02:01]} 26. dxe5 {[%emt 0:03:08]} Qxe5 {[%emt 0:00:45]} 27. Qg6+ {[%emt 0:03:22]} Kh8 {[%emt 0:00:56]} 28. Bxf7 {[%emt 0:00:45]} Qxb2 {[%emt 0:10:16]} 29. Nf5 {[%emt 0:05:01]} Bxe3+ {[%emt 0:04:32]} 30. Nxe3 {[%emt 0:00:23]} Rxe3 {[%emt 0:00:53]} 31. Rxe3 {[%emt 0:01:53]} Qxa1+ {[%emt 0:00:12]} 32. Kh2 {[%emt 0:00:20]} Qd4 {[%emt 0:03:28]} 33. Qh6+ {[%emt 0:00:38]} Nh7 {[%emt 0:00:22]} 34. Re8# {[%emt 0:00:08]} 1-0

[Event "FAI-ch Main 2020"]
[Site "Runavik"]
[Date "2020.10.24"]
[Round "3.4"]
[White "Rasmussen, Gunnleif"]
[Black "Dahl, Karl M"]
[Result "0-1"]
[ECO "B70"]
[WhiteElo "1148"]
[BlackElo "1590"]
[Annotator "NA RC"]
[PlyCount "48"]
[EventDate "2020.10.23"]
[EventType "swiss"]
[EventCountry "FAI"]
[SourceTitle "playchess.com"]
[Source "ChessBase"]
[SourceQuality "1"]
[TimeControl "40/5400+30:900+30"]

1. e4 c5 2. Nf3 d6 3. d4 {[%emt 0:02:03]} cxd4 {[%emt 0:00:15]} 4. Nxd4 {[%emt 0:02:58]} Nf6 {[%emt 0:00:18]} 5. Nc3 {[%emt 0:01:58]} g6 {[%emt 0:01:01]} 6. Bb5+ {[%emt 0:03:23]} Bd7 {[%emt 0:00:42]} 7. Bxd7+ {[%emt 0:00:24]} Nbxd7 {[%emt 0:00:02]} 8. O-O {[%emt 0:00:39]} Bg7 {[%emt 0:00:17]} 9. f3 {[%emt 0:02:08]} O-O {[%emt 0:04:08]} 10. Be3 {[%emt 0:05:43]} a6 {[%emt 0:03:30]} 11. Qe1 {[%emt 0:01:25]} Rc8 {[%emt 0:01:23]} 12. Qd2 {[%emt 0:18:49]} b5 {[%emt 0:03:22]} 13. Nce2 {[%emt 0:01:45]} Nb6 {[%emt 0:03:24]} 14. b3 {[%emt 0:07:06]} e5 {[%emt 0:01:44]} 15. Nf5 {[%emt 0:01:43]} gxf5 {[%emt 0:00:39]} 16. exf5 {[%emt 0:00:33]} Nfd5 {[%emt 0:06:48]} 17. Bh6 {[%emt 0:03:38]} Bxh6 {[%emt 0:01:17]} 18. Qxh6 {[%emt 0:00:15]} Qf6 {[%emt 0:00:10]} 19. Qh5 {[%emt 0:00:48]} Rxc2 {[%emt 0:01:28]} 20. f4 {[%emt 0:02:12]} exf4 {[%emt 0:05:11]} 21. Kh1 {[%emt 0:05:51]} Ne3 {[%emt 0:08:30]} 22. Nd4 {[%emt 0:10:32]} Qxd4 {[%emt 0:02:03]} 23. Qg5+ {[%emt 0:00:58]} Qg7 {[%emt 0:00:11]} 24. Qxf4 {[%emt 0:00:56]} Qxg2# 0-1

[Event "FAI-ch Main 2020"]
[Site "Runavik"]
[Date "2020.10.24"]
[Round "3.5"]
[White "Joensen, Jon Magnus"]
[Black "Hojgaard, Brandur"]
[Result "1/2-1/2"]
[ECO "B51"]
[WhiteElo "1461"]
[BlackElo "1741"]
[Annotator "NA RC"]
[PlyCount "70"]
[EventDate "2020.10.23"]
[EventType "swiss"]
[EventCountry "FAI"]
[SourceTitle "playchess.com"]
[Source "ChessBase"]
[SourceQuality "1"]
[TimeControl "40/5400+30:900+30"]

1. e4 {[%emt 0:00:00]} c5 {[%emt 0:02:30]} 2. Nf3 {[%emt 0:00:52]} d6 {[%emt 0:00:22]} 3. Bb5+ {[%emt 0:00:14]} Nc6 {[%emt 0:00:16]} 4. O-O {[%emt 0:00:42]} a6 {[%emt 0:00:44]} 5. Bxc6+ {[%emt 0:00:10]} bxc6 {[%emt 0:00:07]} 6. h3 {[%emt 0:00:41]} e5 {[%emt 0:02:36]} 7. d3 {[%emt 0:07:20]} Be7 {[%emt 0:05:37]} 8. Nh2 {[%emt 0:00:26]} Bg5 {[%emt 0:05:33]} 9. f4 {[%emt 0:00:57]} exf4 {[%emt 0:00:15]} 10. Bxf4 {[%emt 0:00:17]} Bxf4 {[%emt 0:00:41]} 11. Rxf4 {[%emt 0:00:12]} Nf6 {[%emt 0:01:20]} 12. Nd2 {[%emt 0:00:31]} Be6 {[%emt 0:01:44]} 13. Qe2 {[%emt 0:01:39]} O-O {[%emt 0:03:36]} 14. b3 {[%emt 0:13:58]} a5 {[%emt 0:01:42]} 15. a4 {[%emt 0:02:55]} Ra7 {[%emt 0:13:45]} 16. Re1 {[%emt 0:00:32]} Re7 {[%emt 0:05:00]} 17. Rff1 {[%emt 0:06:39]} Nd7 {[%emt 0:02:12]} 18. Nhf3 {[%emt 0:01:57]} f6 {[%emt 0:01:29]} 19. Qf2 {[%emt 0:00:34]} Ne5 {[%emt 0:01:32]} 20. Qg3 {[%emt 0:00:16]} Ref7 {[%emt 0:02:21]} 21. Rf2 {[%emt 0:01:13]} Qc7 {[%emt 0:02:46]} 22. Nh4 {[%emt 0:05:57]} Qd7 {[%emt 0:04:47]} 23. Nf5 {[%emt 0:01:01]} Bxf5 {[%emt 0:00:37]} 24. Rxf5 {[%emt 0:00:14]} g6 {[%emt 0:05:56]} 25. Rf2 {[%emt 0:00:18]} Kg7 {[%emt 0:05:30]} 26. Ref1 {[%emt 0:03:12]} Qe6 {[%emt 0:01:23]} 27. Nf3 {[%emt 0:01:20]} Nxf3+ {[%emt 0:01:20]} 28. Rxf3 {[%emt 0:00:31]} Qd7 {[%emt 0:05:12]} 29. h4 {[%emt 0:01:42]} Qe6 {[%emt 0:01:31]} 30. Rf5 {[%emt 0:03:07]} Kh8 {[%emt 0:02:09]} 31. R5f3 {[%emt 0:00:26]} Kg7 {[%emt 0:03:08]} 32. Rf4 {[%emt 0:03:07]} Qe5 {[%emt 0:01:19]} 33. R4f3 {[%emt 0:02:57]} Qxg3 {[%emt 0:03:15]} 34. Rxg3 {[%emt 0:00:10]} f5 {[%emt 0:01:21]} 35. exf5 {[%emt 0:00:12]} Rxf5 {[%emt 0:00:23]} 1/2-1/2

[Event "FAI-ch Main 2020"]
[Site "Runavik"]
[Date "2020.10.25"]
[Round "4.1"]
[White "Tummasarson, Flovin M."]
[Black "Morkore, Rogvi"]
[Result "1/2-1/2"]
[ECO "C01"]
[WhiteElo "1625"]
[BlackElo "1592"]
[Annotator "NA RC"]
[PlyCount "56"]
[EventDate "2020.10.23"]
[EventType "swiss"]
[EventCountry "FAI"]
[SourceTitle "playchess.com"]
[Source "ChessBase"]
[SourceQuality "1"]
[TimeControl "40/5400+30:900+30"]

1. e4 {[%emt 0:00:00]} e6 {[%emt 0:00:00]} 2. d4 {[%emt 0:00:08]} d5 {[%emt 0:00:09]} 3. exd5 {[%emt 0:00:29]} exd5 {[%emt 0:00:12]} 4. c4 {[%emt 0:00:35]} Nf6 {[%emt 0:01:12]} 5. Nc3 {[%emt 0:01:39]} Bb4 {[%emt 0:00:50]} 6. Nf3 {[%emt 0:01:10]} O-O {[%emt 0:01:21]} 7. Be2 {[%emt 0:00:30]} dxc4 {[%emt 0:01:40]} 8. Bxc4 {[%emt 0:02:38]} Bg4 {[%emt 0:02:32]} 9. O-O {[%emt 0:12:52]} Bxf3 {[%emt 0:01:53]} 10. Qxf3 {[%emt 0:03:07]} Qxd4 {[%emt 0:00:31]} 11. Qxb7 {[%emt 0:02:23]} Qxc4 {[%emt 0:02:44]} 12. Qxa8 {[%emt 0:00:29]} Bd6 {[%emt 0:01:59]} 13. Qf3 {[%emt 0:04:31]} Bxh2+ {[%emt 0:02:15]} 14. Kxh2 {[%emt 0:01:57]} Qxf1 {[%emt 0:00:14]} 15. b3 {[%emt 0:08:40]} h5 {[%emt 0:11:45]} 16. Bb2 {[%emt 0:04:55]} Qa6 {[%emt 0:04:45]} 17. Ne4 {[%emt 0:04:07]} Nxe4 {[%emt 0:04:42]} 18. Qxe4 {[%emt 0:01:46]} Nd7 {[%emt 0:08:18]} 19. Kg1 {[%emt 0:02:44]} Nf6 {[%emt 0:03:02]} 20. Qf5 {[%emt 0:01:52]} Re8 {[%emt 0:08:28]} 21. Rc1 {[%emt 0:05:26]} Ng4 {[%emt 0:14:10]} 22. Qxh5 {[%emt 0:23:29]} Qe2 {[%emt 0:00:31]} 23. Rf1 {[%emt 0:02:46]} Qxb2 {[%emt 0:09:40]} 24. Qxg4 {[%emt 0:00:48]} Qxa2 {[%emt 0:00:34]} 25. Qd7 {[%emt 0:01:11]} Rb8 {[%emt 0:00:54]} 26. Qxc7 {[%emt 0:00:19]} Rxb3 {[%emt 0:00:20]} 27. Qd8+ {[%emt 0:00:41]} Kh7 {[%emt 0:00:07]} 28. Qh4+ {[%emt 0:00:08]} Kg8 {[%emt 0:00:32]} 1/2-1/2

[Event "FAI-ch Main 2020"]
[Site "Runavik"]
[Date "2020.10.25"]
[Round "4.3"]
[White "Joensen, Sigurd"]
[Black "Gregersen, Einar"]
[Result "0-1"]
[ECO "B20"]
[WhiteElo "1537"]
[BlackElo "1758"]
[Annotator "NA RC"]
[PlyCount "96"]
[EventDate "2020.10.23"]
[EventType "swiss"]
[EventCountry "FAI"]
[SourceTitle "playchess.com"]
[Source "ChessBase"]
[SourceQuality "1"]
[TimeControl "40/5400+30:900+30"]

1. e4 {[%emt 0:00:00]} c5 {[%emt 0:00:00]} 2. d3 {[%emt 0:01:34]} d6 {[%emt 0:01:14]} 3. f4 {[%emt 0:01:10]} Nc6 {[%emt 0:02:34]} 4. c3 {[%emt 0:01:02]} g6 {[%emt 0:03:59]} 5. Nf3 {[%emt 0:01:54]} Bg7 {[%emt 0:01:04]} 6. Be2 {[%emt 0:00:31]} Nf6 {[%emt 0:03:55]} 7. O-O {[%emt 0:01:14]} b5 {[%emt 0:02:33]} 8. a3 {[%emt 0:01:18]} Bb7 {[%emt 0:01:33]} 9. Kh1 {[%emt 0:00:12]} O-O {[%emt 0:05:40]} 10. Ng5 {[%emt 0:03:47]} a5 {[%emt 0:07:31]} 11. Qe1 {[%emt 0:01:17]} b4 {[%emt 0:03:03]} 12. Qh4 {[%emt 0:01:15]} h6 {[%emt 0:03:35]} 13. Nh3 {[%emt 0:03:32]} bxc3 {[%emt 0:02:10]} 14. bxc3 {[%emt 0:01:52]} c4 {[%emt 0:02:38]} 15. f5 {[%emt 0:01:01]} cxd3 {[%emt 0:09:38]} 16. Bxd3 {[%emt 0:06:41]} g5 {[%emt 0:04:39]} 17. Nxg5 {[%emt 0:07:16]} hxg5 18. Qxg5 {[%emt 0:00:34]} Ne5 {[%emt 0:10:05]} 19. Bc2 {[%emt 0:05:45]} Bxe4 {[%emt 0:05:47]} 20. Bxe4 {[%emt 0:09:18]} Nxe4 {[%emt 0:00:10]} 21. Qh4 {[%emt 0:00:56]} d5 {[%emt 0:01:08]} 22. Bh6 {[%emt 0:03:44]} Bxh6 {[%emt 0:05:17]} 23. Qxh6 {[%emt 0:02:07]} Qd6 {[%emt 0:00:23]} 24. Qf4 {[%emt 0:06:25]} Qf6 {[%emt 0:05:38]} 25. Ra2 {[%emt 0:04:20]} Kh8 {[%emt 0:02:00]} 26. Re2 {[%emt 0:04:38]} Rg8 {[%emt 0:00:42]} 27. Re3 {[%emt 0:01:02]} Rg4 {[%emt 0:01:37]} 28. Rh3+ {[%emt 0:01:29]} Kg7 {[%emt 0:00:07]} 29. Qe3 {[%emt 0:01:36]} Rb8 {[%emt 0:01:33]} 30. Nd2 {[%emt 0:02:32]} Nxd2 {[%emt 0:01:44]} 31. Qxd2 {[%emt 0:00:27]} e6 {[%emt 0:02:48]} 32. Kg1 {[%emt 0:07:56]} Qg5 {[%emt 0:03:08]} 33. f6+ {[%emt 0:01:47]} Kg8 {[%emt 0:00:28]} 34. Qc2 {[%emt 0:02:09]} Qg6 {[%emt 0:00:35]} 35. Qe2 {[%emt 0:01:00]} Nc4 {[%emt 0:02:16]} 36. a4 {[%emt 0:02:35]} Rb2 {[%emt 0:00:45]} 37. Qxg4 {[%emt 0:04:36]} Qxg4 {[%emt 0:00:08]} 38. Rg3 {[%emt 0:00:38]} Qxg3 {[%emt 0:00:06]} 39. hxg3 {[%emt 0:01:00]} Kh7 {[%emt 0:00:22]} 40. Kh2 {[%emt 0:00:00]} Ra2 {[%emt 0:00:00]} 41. Kh3 {[%emt 0:04:17]} Rxa4 {[%emt 0:04:08]} 42. Rf4 {[%emt 0:02:00]} Nb6 {[%emt 0:01:12]} 43. Rh4+ {[%emt 0:02:06]} Rxh4+ {[%emt 0:00:13]} 44. gxh4 {[%emt 0:00:23]} a4 {[%emt 0:00:13]} 45. g4 {[%emt 0:00:09]} a3 {[%emt 0:00:16]} 46. g5 {[%emt 0:00:28]} a2 {[%emt 0:00:05]} 47. h5 {[%emt 0:00:28]} a1=Q {[%emt 0:00:11]} 48. g6+ {[%emt 0:00:39]} fxg6 0-1

[Event "FAI-ch Main 2020"]
[Site "Runavik"]
[Date "2020.10.25"]
[Round "4.4"]
[White "Hojgaard, Brandur"]
[Black "Joensen, Henrik W."]
[Result "1/2-1/2"]
[ECO "A48"]
[WhiteElo "1741"]
[BlackElo "1650"]
[Annotator "NA RC"]
[PlyCount "147"]
[EventDate "2020.10.23"]
[EventType "swiss"]
[EventCountry "FAI"]
[SourceTitle "playchess.com"]
[Source "ChessBase"]
[SourceQuality "1"]
[TimeControl "40/5400+30:900+30"]

1. Nf3 {[%emt 0:01:22]} Nf6 {[%emt 0:00:01]} 2. d4 {[%emt 0:00:09]} g6 {[%emt 0:00:22]} 3. Bf4 {[%emt 0:00:09]} Bg7 {[%emt 0:00:34]} 4. e3 {[%emt 0:00:10]} d5 {[%emt 0:01:35]} 5. h3 {[%emt 0:00:15]} c5 {[%emt 0:03:10]} 6. c3 {[%emt 0:00:22]} O-O {[%emt 0:00:35]} 7. Nbd2 {[%emt 0:01:26]} cxd4 {[%emt 0:02:48]} 8. exd4 {[%emt 0:00:48]} Nc6 {[%emt 0:03:20]} 9. Ne5 {[%emt 0:04:29]} Nxe5 {[%emt 0:03:25]} 10. Bxe5 {[%emt 0:04:44]} Nh5 {[%emt 0:07:22]} 11. Bxg7 {[%emt 0:00:50]} Kxg7 {[%emt 0:02:04]} 12. Nf3 {[%emt 0:05:08]} Qb6 {[%emt 0:02:01]} 13. Qd2 {[%emt 0:06:37]} Bd7 {[%emt 0:06:59]} 14. Be2 {[%emt 0:04:34]} Nf6 {[%emt 0:02:44]} 15. O-O {[%emt 0:04:08]} Ne4 {[%emt 0:01:51]} 16. Qc2 {[%emt 0:02:53]} Bf5 {[%emt 0:09:18]} 17. Nh4 {[%emt 0:06:46]} Nd6 {[%emt 0:13:13]} 18. Nxf5+ {[%emt 0:05:35]} Nxf5 {[%emt 0:00:36]} 19. Rfe1 {[%emt 0:02:07]} Nd6 {[%emt 0:06:29]} 20. Bd3 {[%emt 0:03:36]} Rfe8 {[%emt 0:06:12]} 21. Re5 {[%emt 0:10:25]} e6 {[%emt 0:04:54]} 22. Re2 {[%emt 0:08:20]} Qc7 {[%emt 0:01:43]} 23. Qd2 {[%emt 0:01:27]} Nc4 {[%emt 0:02:05]} 24. Qg5 {[%emt 0:02:38]} Rac8 {[%emt 0:04:38]} 25. Rc1 {[%emt 0:05:53]} a6 {[%emt 0:01:53]} 26. h4 {[%emt 0:00:47]} b5 {[%emt 0:01:07]} 27. h5 {[%emt 0:03:51]} Qe7 {[%emt 0:00:13]} 28. Qg4 {[%emt 0:03:07]} Qf6 {[%emt 0:02:50]} 29. g3 {[%emt 0:02:44]} Nb6 {[%emt 0:03:02]} 30. a3 {[%emt 0:03:19]} Nc4 {[%emt 0:00:23]} 31. Rce1 {[%emt 0:01:27]} Rcd8 {[%emt 0:00:44]} 32. Kg2 {[%emt 0:00:42]} Nd6 {[%emt 0:01:54]} 33. hxg6 {[%emt 0:01:11]} hxg6 {[%emt 0:00:29]} 34. Rh1 {[%emt 0:00:52]} Rh8 {[%emt 0:00:17]} 35. Ree1 {[%emt 0:00:22]} Nc4 {[%emt 0:00:45]} 36. Bxc4 {[%emt 0:01:39]} bxc4 {[%emt 0:00:17]} 37. Qd1 {[%emt 0:02:18]} Rb8 {[%emt 0:00:35]} 38. Rxh8 {[%emt 0:00:25]} Rxb2 {[%emt 0:01:57]} 39. Rh2 {[%emt 0:00:47]} Qxf2+ {[%emt 0:00:35]} 40. Kh3 {[%emt 0:00:00]} Qxh2+ {[%emt 0:00:00]} 41. Kg4 {[%emt 0:00:21]} f5+ {[%emt 0:01:32]} 42. Kf4 {[%emt 0:01:51]} Rf2+ {[%emt 0:00:52]} 43. Ke5 {[%emt 0:01:06]} Qxg3+ {[%emt 0:00:32]} 44. Kxe6 {[%emt 0:00:36]} Qxc3 {[%emt 0:05:19]} 45. Kd7 {[%emt 0:07:41]} Qf3 {[%emt 0:05:21]} 46. Re7+ {[%emt 0:01:55]} Kh6 {[%emt 0:00:44]} 47. Qe1 {[%emt 0:01:31]} c3 {[%emt 0:01:25]} 48. Qe5 {[%emt 0:01:08]} c2 {[%emt 0:01:15]} 49. Qf6 {[%emt 0:00:52]} Qf4 {[%emt 0:01:41]} 50. Re8 {[%emt 0:01:07]} Kh5 {[%emt 0:01:03]} 51. Rh8+ {[%emt 0:00:47]} Kg4 {[%emt 0:01:13]} 52. Rh4+ {[%emt 0:01:54]} Kf3 {[%emt 0:00:30]} 53. Rxf4+ {[%emt 0:00:25]} Kxf4 {[%emt 0:00:16]} 54. Qe5+ {[%emt 0:00:51]} Kg4 {[%emt 0:00:52]} 55. Qe1 {[%emt 0:01:03]} Kf3 {[%emt 0:00:54]} 56. Kd6 {[%emt 0:00:15]} Re2 {[%emt 0:00:41]} 57. Qc1 {[%emt 0:00:55]} Ke4 {[%emt 0:00:45]} 58. Kc5 {[%emt 0:00:31]} Kd3 {[%emt 0:01:08]} 59. a4 {[%emt 0:00:40]} Kc3 {[%emt 0:01:03]} 60. Kxd5 {[%emt 0:00:24]} Kb3 {[%emt 0:00:54]} 61. Kc5 {[%emt 0:00:40]} Kc3 {[%emt 0:01:19]} 62. d5 {[%emt 0:00:22]} Re4 {[%emt 0:00:34]} 63. d6 {[%emt 0:00:39]} Rc4+ {[%emt 0:00:16]} 64. Kb6 {[%emt 0:00:28]} Rb4+ {[%emt 0:00:12]} 65. Kc5 {[%emt 0:00:15]} Rb1 {[%emt 0:00:33]} 66. Qe3+ {[%emt 0:00:20]} Kb2 {[%emt 0:00:36]} 67. Qd4+ {[%emt 0:00:37]} Ka2 {[%emt 0:00:46]} 68. Qd2 {[%emt 0:00:46]} Kb2 {[%emt 0:00:32]} 69. d7 {[%emt 0:00:21]} Rd1 {[%emt 0:00:24]} 70. Qb4+ {[%emt 0:00:12]} Ka2 {[%emt 0:00:21]} 71. Qc4+ {[%emt 0:00:44]} Kb2 {[%emt 0:00:27]} 72. Qb4+ {[%emt 0:00:25]} Ka2 {[%emt 0:00:26]} 73. Qc4+ {[%emt 0:00:32]} Kb2 {[%emt 0:00:30]} 74. Qb4+ 1/2-1/2